bitfinex/quotes_BTCUSD_20241120
["timestamp","ask_amount","ask_price","bid_price","bid_amount"]
[1732078215194,0.53855456,92169.0,92168.0,0.0017088]
[1732078216503,0.57235854,92169.0,92168.0,0.0017088]
[1732078218240,0.57235862,92169.0,92168.0,0.0017088]
[1732078218453,0.66928181,92169.0,92168.0,0.0017088]
[1732078219267,0.57235862,92169.0,92168.0,0.0017088]
[1732078219914,1.12451952,92169.0,92168.0,0.0017088]
[1732078220125,0.93067313,92169.0,92168.0,0.0017088]
[1732078220382,1.17298111,92169.0,92168.0,0.0017088]
[1732078220601,0.93079358,92169.0,92168.0,0.0017088]
[1732078221493,0.93080109,92169.0,92168.0,0.0017088]
[1732078224668,0.93080657,92169.0,92168.0,0.0017088]
[1732078225107,0.03709276,92163.0,92162.0,0.0017084]
[1732078225372,0.60162596,92163.0,92162.0,0.0017084]
[1732078225572,0.60082978,92163.0,92162.0,0.0017084]
[1732078225806,0.71605633,92163.0,92162.0,0.0017084]
[1732078226025,0.79195633,92163.0,92162.0,0.0017084]
[1732078229963,0.83529765,92163.0,92162.0,0.0017084]
[1732078230417,0.83607218,92163.0,92162.0,0.0017084]
[1732078231335,0.79273086,92163.0,92162.0,0.0017084]
[1732078232007,0.79336899,92163.0,92162.0,0.0017084]
[1732078235153,0.82718083,92163.0,92162.0,0.0017084]
[1732078235371,0.82720615,92163.0,92162.0,0.0017084]
[1732078237238,0.46797134,92163.0,92162.0,0.0017084]
[1732078237456,0.82721776,92163.0,92162.0,0.0017084]
[1732078237899,0.82521776,92163.0,92162.0,0.0017084]
[1732078238348,0.90515859,92163.0,92162.0,0.0017084]
[1732078238802,1.05422824,92163.0,92162.0,0.0017084]
[1732078239232,1.26629954,92163.0,92162.0,0.0017084]
[1732078239448,0.97428741,92163.0,92162.0,0.0017084]
[1732078239886,1.07428741,92163.0,92162.0,0.0017084]
[1732078240338,1.07428741,92163.0,92131.0,0.05427]
[1732078240339,0.34853859,92161.0,92131.0,0.05427]
[1732078240579,1.03090661,92161.0,92134.0,0.054268]
[1732078240822,0.95351274,92161.0,92134.0,0.054268]
[1732078241049,0.95351274,92161.0,92131.0,0.05427]
[1732078241050,1.0334519,92161.0,92133.0,0.054269]
[1732078241264,1.0334519,92161.0,92131.0,0.05427]
[1732078241931,1.0334519,92161.0,92133.0,0.054268]
[1732078242366,0.95351107,92161.0,92134.0,0.054268]
[1732078242576,1.0334519,92161.0,92134.0,0.054268]
[1732078242798,0.95351107,92161.0,92131.0,0.05427]
[1732078243028,0.95351107,92161.0,92134.0,0.054268]
[1732078245406,0.95351107,92161.0,92127.0,0.06225998]
[1732078245407,0.01509276,92128.0,92127.0,0.06225998]
[1732078245621,0.12415531,92128.0,92127.0,0.11653198]
[1732078246047,0.12669166,92128.0,92127.0,0.11653198]
[1732078246460,0.12669166,92128.0,92127.0,0.085572]
[1732078247552,0.12364976,92117.0,92116.0,0.0008538]
[1732078247763,0.23271231,92117.0,92116.0,0.0008538]
[1732078248008,0.25553007,92117.0,92116.0,0.0008538]
[1732078248764,0.14697307,92117.0,92116.0,0.0008538]
[1732078248981,0.1297708,92125.0,92119.0,0.064277]
[1732078249216,0.09733373,92137.0,92136.0,0.110067]
[1732078249427,0.09728016,92139.0,92138.0,0.054266]
[1732078249640,0.09728016,92142.0,92140.0,0.054265]
[1732078249863,0.09728016,92142.0,92141.0,0.054264]
[1732078250065,0.10906255,92143.0,92141.0,0.054264]
[1732078250066,0.20634271,92143.0,92142.0,0.054264]
[1732078250693,0.10906255,92143.0,92142.0,0.054264]
[1732078256701,0.11130266,92143.0,92142.0,0.054264]
[1732078257813,0.11130266,92143.0,92137.0,0.054267]
[1732078257814,0.50431722,92143.0,92139.0,0.054265]
[1732078258023,0.14594563,92141.0,92131.0,0.05427]
[1732078258234,0.09727983,92134.0,92133.0,0.054269]
[1732078258462,0.10906255,92134.0,92133.0,0.054269]
[1732078258674,0.10906255,92134.0,92108.0,0.0017082]
[1732078258675,0.01,92131.0,92109.0,0.0017082]
[1732078258889,0.10906255,92128.0,92120.0,0.054276]
[1732078259112,0.00225348,92134.0,92125.0,0.054273]
[1732078259312,0.00225348,92134.0,92116.0,0.04520435]
[1732078259313,0.00224583,92127.0,92117.0,0.0871]
[1732078259538,0.10906255,92134.0,92126.0,0.054273]
[1732078259766,0.10906255,92134.0,92133.0,0.054269]
[1732078259935,0.09727677,92142.0,92133.0,0.054269]
[1732078260177,0.00271349,92141.0,92133.0,0.054269]
[1732078260383,0.00271349,92142.0,92133.0,0.108538]
[1732078260997,0.12932547,92141.0,92133.0,0.054269]
[1732078261216,0.02297641,92140.0,92133.0,0.054269]
[1732078261411,0.12932547,92139.0,92133.0,0.054269]
[1732078261635,0.02297641,92138.0,92134.0,0.054268]
[1732078261808,0.12932547,92137.0,92136.0,0.054267]
[1732078263884,0.1315773,92137.0,92136.0,0.054267]
[1732078264082,0.2103773,92137.0,92136.0,0.054267]
[1732078264748,0.2103773,92137.0,92129.0,0.0008546]
[1732078264943,0.108542,92130.0,92129.0,0.0008546]
[1732078265144,0.25058124,92130.0,92129.0,0.0008546]
[1732078265378,0.25011358,92130.0,92129.0,0.0008546]
[1732078265591,0.14157158,92130.0,92129.0,0.0008546]
[1732078265811,0.25282733,92130.0,92129.0,0.0008546]
[1732078266013,0.25011358,92130.0,92129.0,0.0008546]
[1732078266284,0.14157158,92130.0,92129.0,0.0008546]
[1732078266492,0.25011358,92130.0,92129.0,0.0008546]
[1732078267272,0.99377058,92130.0,92129.0,0.0008546]
[1732078269632,1.13117058,92130.0,92129.0,0.0008546]
[1732078270066,1.22839935,92130.0,92129.0,0.0008546]
[1732078270269,1.27699123,92130.0,92129.0,0.0008546]
[1732078270476,1.49003198,92130.0,92129.0,0.0008546]
[1732078271398,1.61297238,92130.0,92129.0,0.0008546]
[1732078271608,1.61497238,92130.0,92129.0,0.0008546]
[1732078272054,1.61495464,92130.0,92129.0,0.0008546]
[1732078272278,1.80931837,92130.0,92129.0,0.0008546]
[1732078274059,1.61495464,92130.0,92129.0,0.0008546]
[1732078274276,1.80925551,92130.0,92129.0,0.0008546]
[1732078274720,1.59195464,92130.0,92129.0,0.0008546]
[1732078274972,1.78425648,92130.0,92129.0,0.0008546]
[1732078275194,1.78424381,92130.0,92129.0,0.0008546]
[1732078276246,1.78624381,92130.0,92129.0,0.0008546]
[1732078276466,1.59194197,92130.0,92129.0,0.0008546]
[1732078277935,1.59194197,92130.0,92129.0,2.0008546]
[1732078278362,1.23314017,92130.0,92129.0,2.0008546]
[1732078279300,1.37878885,92130.0,92129.0,2.0008546]
[1732078281264,1.15824685,92130.0,92129.0,2.0008546]
[1732078281477,1.06449345,92130.0,92129.0,2.0008546]
[1732078281742,0.94716566,92130.0,92129.0,2.0008546]
[1732078281969,0.96739061,92130.0,92129.0,2.0008546]
[1732078282363,1.07593261,92130.0,92129.0,2.0008546]
[1732078282603,0.96739061,92130.0,92129.0,2.0008546]
[1732078283012,1.08793261,92130.0,92129.0,2.0008546]
[1732078284920,1.06770766,92130.0,92129.0,2.0008546]
[1732078285136,1.08794831,92130.0,92129.0,2.0008546]
[1732078285976,1.08594831,92130.0,92129.0,2.0008546]
[1732078286193,1.18305226,92130.0,92129.0,2.0008546]
[1732078286393,1.10894831,92130.0,92129.0,2.0008546]
[1732078286882,1.20605475,92130.0,92129.0,2.0008546]
[1732078287313,1.10894831,92130.0,92129.0,2.0008546]
[1732078287972,1.09894831,92130.0,92129.0,2.0008546]
[1732078288212,1.05570766,92130.0,92129.0,2.0008546]
[1732078288452,0.76617447,92130.0,92129.0,2.0551256]
[1732078288674,0.74590311,92130.0,92129.0,2.0551256]
[1732078289621,0.74590311,92130.0,92129.0,2.09092723]
[1732078296628,0.85496566,92130.0,92129.0,2.0551256]
[1732078299405,0.85568052,92130.0,92129.0,2.0551256]
[1732078311820,0.8552435,92130.0,92129.0,2.0551256]
[1732078317802,0.92134731,92130.0,92129.0,2.0008546]
[1732078318014,0.92134731,92130.0,92129.0,2.0551256]
[1732078318239,0.99734731,92130.0,92129.0,2.0551256]
[1732078320727,0.9770435,92130.0,92129.0,2.0551256]
[1732078320934,0.99734625,92130.0,92129.0,2.0551256]
[1732078329081,0.99734625,92130.0,92129.0,1.75621364]
[1732078329523,0.97451955,92130.0,92129.0,1.75621364]
[1732078329742,0.99481007,92130.0,92129.0,1.75621364]
[1732078329962,0.99773569,92130.0,92129.0,1.75621364]
[1732078331124,0.99773569,92130.0,92129.0,1.70194264]
[1732078331331,1.10627769,92130.0,92129.0,1.70194264]
[1732078331530,0.99773569,92130.0,92129.0,1.70194264]
[1732078331738,1.10627769,92130.0,92129.0,1.70194264]
[1732078331966,0.99773569,92130.0,92129.0,1.70194264]
[1732078332837,1.10627628,92130.0,92129.0,1.70194264]
[1732078333047,0.1255,92128.0,92123.0,0.054274]
[1732078333264,0.13206543,92127.0,92123.0,0.054274]
[1732078333462,0.02028911,92126.0,92123.0,0.054274]
[1732078333733,0.13206543,92125.0,92121.0,0.054276]
[1732078333947,0.10906255,92123.0,92116.0,0.0008538]
[1732078334123,0.108553,92121.0,92116.0,0.0008538]
[1732078334356,0.13206571,92120.0,92116.0,0.0008538]
[1732078334564,0.11469561,92120.0,92116.0,0.0008538]
[1732078335297,0.11198156,92120.0,92119.0,0.054277]
[1732078339724,0.23748156,92120.0,92119.0,0.054277]
[1732078345820,0.23748156,92120.0,92119.0,0.0551316]
[1732078347097,0.11198156,92120.0,92119.0,0.0551316]
[1732078347350,0.00291901,92120.0,92119.0,0.0551316]
[1732078347782,0.0456,92129.0,92119.0,0.0551316]
[1732078347783,0.0456,92129.0,92128.0,0.054272]
[1732078348004,0.15466255,92129.0,92128.0,0.054272]
[1732078353884,0.1577617,92129.0,92128.0,0.054272]
[1732078356543,0.1577617,92129.0,92128.0,0.053937]
[1732078357389,0.1594709,92129.0,92128.0,0.053937]
[1732078357819,0.1594709,92129.0,92128.0,0.05073893]
[1732078358042,0.1594709,92129.0,92128.0,0.04247557]
[1732078369935,0.1594709,92129.0,92128.0,0.04333017]
[1732078371198,0.1594709,92129.0,92128.0,0.0008546]
[1732078371199,0.16218447,92129.0,92128.0,0.0008546]
[1732078371401,0.25960872,92129.0,92128.0,0.0008546]
[1732078371626,0.49545028,92129.0,92128.0,0.0008546]
[1732078371828,0.4954546,92129.0,92128.0,0.0008546]
[1732078372656,0.3889116,92129.0,92128.0,0.0008546]
[1732078372879,0.3613139,92129.0,92128.0,0.0008546]
[1732078373280,0.73096007,92129.0,92128.0,0.0008546]
[1732078373705,0.76479173,92129.0,92128.0,0.0008546]
[1732078373914,1.26011581,92129.0,92128.0,0.0008546]
[1732078374117,0.9678344,92129.0,92128.0,0.0008546]
[1732078375089,0.92650962,92129.0,92128.0,0.0551266]
[1732078375279,0.1138709,92129.0,92128.0,0.0551266]
[1732078378781,0.09828892,92129.0,92128.0,0.0551266]
[1732078380038,0.09828892,92129.0,92128.0,0.0560055]
[1732078393799,0.19568448,92129.0,92128.0,0.0560055]
[1732078393968,0.09828892,92129.0,92128.0,0.0560055]
[1732078394385,0.19568448,92129.0,92128.0,0.0560055]
[1732078394597,0.09828892,92129.0,92128.0,0.054272]
[1732078401932,0.00480835,92129.0,92128.0,0.054272]
[1732078404360,0.00480835,92129.0,92128.0,0.0551263]
[1732078411093,0.1910709,92129.0,92128.0,0.0551263]
[1732078411312,0.2395709,92129.0,92128.0,0.0551263]
[1732078411525,0.2395709,92129.0,92128.0,0.0008543]
[1732078411969,0.2395709,92129.0,92128.0,0.0551263]
[1732078412203,0.2395709,92129.0,92128.0,0.0008543]
[1732078412204,0.38566425,92129.0,92128.0,0.0008543]
[1732078412867,0.33695357,92129.0,92128.0,0.0008543]
[1732078413101,0.38566425,92129.0,92128.0,0.0008543]
[1732078414271,0.90238172,92129.0,92128.0,0.0008543]
[1732078414474,0.9530795,92129.0,92128.0,0.0008543]
[1732078414697,0.95304064,92129.0,92128.0,0.0008543]
[1732078414908,0.70959059,92129.0,92128.0,0.0008543]
[1732078415923,0.72959059,92129.0,92128.0,0.0008543]
[1732078416331,0.76339997,92129.0,92128.0,0.0008543]
[1732078417506,0.7632522,92129.0,92128.0,0.0008543]
[1732078418126,0.72944282,92129.0,92128.0,0.0008543]
[1732078420250,0.7738183,92129.0,92128.0,0.0008543]
[1732078423790,0.7718183,92129.0,92128.0,0.0008543]
[1732078424398,1.01501327,92129.0,92128.0,0.0008543]
[1732078424618,0.96063779,92129.0,92128.0,0.0008543]
[1732078425968,0.97063779,92129.0,92128.0,0.0008543]
[1732078427251,0.72744282,92129.0,92128.0,0.0008543]
[1732078430717,0.72944282,92129.0,92128.0,0.0008543]
[1732078434446,0.92390026,92129.0,92128.0,0.0008543]
[1732078434898,0.72944282,92129.0,92128.0,0.0008543]
[1732078435311,0.92389459,92129.0,92128.0,0.0008543]
[1732078438265,0.92189459,92129.0,92128.0,0.0008543]
[1732078440468,0.92389459,92129.0,92128.0,0.0008543]
[1732078441142,0.92342282,92129.0,92128.0,0.0008543]
[1732078444222,0.78578295,92129.0,92128.0,0.00144101]
[1732078444433,0.86581547,92129.0,92128.0,0.00022323]
[1732078445087,0.282445,92127.0,92126.0,0.0008543]
[1732078445320,0.42831735,92127.0,92126.0,0.0008543]
[1732078445576,0.78718964,92127.0,92126.0,0.0008543]
[1732078445990,1.03023961,92127.0,92126.0,0.0008543]
[1732078446212,0.78718964,92127.0,92126.0,0.0008543]
[1732078446639,1.03024653,92127.0,92126.0,0.0008543]
[1732078447298,0.78718964,92127.0,92126.0,0.0008543]
[1732078447741,0.86722216,92127.0,92126.0,0.0008543]
[1732078451284,0.96722216,92127.0,92126.0,0.0008543]
[1732078452200,1.2588771,92127.0,92126.0,0.0008543]
[1732078453300,0.96722216,92127.0,92126.0,0.0008543]
[1732078453745,1.25912378,92127.0,92126.0,0.0008543]
[1732078454364,0.96722216,92127.0,92126.0,0.0008543]
[1732078458105,0.88718964,92127.0,92126.0,0.0008543]
[1732078458964,0.96722216,92127.0,92126.0,0.0008543]
[1732078459374,0.254654,92120.0,92119.0,0.00049561]
[1732078459577,0.83641812,92120.0,92119.0,0.00049561]
[1732078459797,1.13122069,92120.0,92119.0,0.00049561]
[1732078460007,0.8389727,92120.0,92119.0,0.00049561]
[1732078462008,0.8269727,92120.0,92119.0,0.00049561]
[1732078462688,0.8369727,92120.0,92119.0,0.00049561]
[1732078462942,0.8389727,92120.0,92119.0,0.00049561]
[1732078463777,1.13121766,92120.0,92119.0,0.00049561]
[1732078464435,1.17630929,92120.0,92119.0,0.00049561]
[1732078464652,0.88477448,92120.0,92119.0,0.00049561]
[1732078465107,1.17701145,92120.0,92119.0,0.00049561]
[1732078466475,0.88477448,92120.0,92119.0,0.00049561]
[1732078466927,0.51499633,92120.0,92119.0,0.00049561]
[1732078467153,0.48119957,92120.0,92119.0,0.00049561]
[1732078467568,0.57975357,92120.0,92119.0,0.00049561]
[1732078467772,0.58975357,92120.0,92119.0,0.00049561]
[1732078468198,0.58975357,92120.0,92113.0,0.05428]
[1732078468199,0.57975357,92120.0,92113.0,0.05428]
[1732078468440,0.09740198,92114.0,92082.0,0.1219283]
[1732078468649,0.09740198,92114.0,92113.0,0.054281]
[1732078468858,0.09740198,92115.0,92113.0,0.054281]
[1732078469086,0.09740198,92115.0,92082.0,0.1]
[1732078469087,0.00271412,92115.0,92105.0,0.054285]
[1732078469296,0.20596931,92111.0,92105.0,0.054285]
[1732078469505,0.217124,92113.0,92106.0,0.054285]
[1732078469506,0.10011965,92110.0,92106.0,0.054285]
[1732078469917,0.108567,92109.0,92104.0,0.054286]
[1732078470118,0.108567,92109.0,92103.0,0.054287]
[1732078470119,0.00271435,92108.0,92103.0,0.054286]
[1732078470328,0.108571,92106.0,92102.0,0.0017082]
[1732078470544,0.00271439,92105.0,92102.0,0.0017082]
[1732078470972,0.10906255,92104.0,92102.0,0.0017082]
[1732078471816,0.10906255,92104.0,92103.0,0.054287]
[1732078472491,0.10906255,92104.0,92102.0,0.0559952]
[1732078472980,0.10906255,92104.0,92102.0,0.0017082]
[1732078473207,0.11128861,92103.0,92102.0,0.0017082]
[1732078473458,0.22035116,92103.0,92102.0,0.0017082]
[1732078473882,0.22290111,92103.0,92102.0,0.0017082]
[1732078474075,0.2201865,92103.0,92102.0,0.0017082]
[1732078474297,0.22290113,92103.0,92102.0,0.0017082]
[1732078474513,0.22290113,92103.0,92095.0,0.054291]
[1732078474514,0.108576,92101.0,92095.0,0.05030964]
[1732078474716,0.11161146,92100.0,92099.0,0.054289]
[1732078475639,0.10906255,92100.0,92099.0,0.054289]
[1732078476034,0.11161146,92100.0,92099.0,0.054289]
[1732078488885,0.11161146,92100.0,92099.0,0.0551435]
[1732078490297,0.11161146,92100.0,92099.0,0.0008545]
[1732078490952,0.11161146,92100.0,92099.0,0.0551435]
[1732078491174,0.11161146,92100.0,92099.0,0.0008545]
[1732078491594,0.11161146,92100.0,92099.0,0.0551435]
[1732078492040,0.11161146,92100.0,92099.0,0.0008545]
[1732078494221,0.11161146,92100.0,92099.0,0.05560927]
[1732078494693,0.11161146,92100.0,92099.0,0.00132027]
[1732078496887,0.11161146,92100.0,92099.0,0.05560927]
[1732078500792,0.11332066,92100.0,92099.0,0.00132027]
[1732078501247,0.11332066,92100.0,92099.0,0.05560927]
[1732078503688,0.11332066,92100.0,92099.0,0.00132027]
[1732078505602,0.22189766,92100.0,92099.0,0.00132027]
[1732078505840,0.49435945,92100.0,92099.0,0.00132027]
[1732078506045,0.95184117,92100.0,92099.0,0.00132027]
[1732078506298,0.34809766,92100.0,92099.0,0.00132027]
[1732078506517,0.70806617,92100.0,92099.0,0.00132027]
[1732078506740,0.7419444,92100.0,92099.0,0.00132027]
[1732078507444,0.7519444,92100.0,92099.0,0.00132027]
[1732078509543,0.7519444,92100.0,92099.0,0.00132028]
[1732078510237,0.71808074,92100.0,92099.0,0.00132028]
[1732078511135,0.75190341,92100.0,92099.0,0.00132028]
[1732078511394,0.71808074,92100.0,92099.0,0.00132028]
[1732078511630,0.71766429,92100.0,92099.0,0.00132028]
[1732078515464,0.96108259,92100.0,92099.0,0.00132028]
[1732078515680,0.71766429,92100.0,92099.0,0.00132028]
[1732078515905,0.9610826,92100.0,92099.0,0.00132028]
[1732078516789,0.96088909,92100.0,92099.0,0.00132028]
[1732078518150,0.71749066,92100.0,92099.0,0.00132028]
[1732078520215,0.91216729,92100.0,92099.0,0.00132028]
[1732078520893,0.95088909,92100.0,92099.0,0.00132028]
[1732078521116,0.95088909,92100.0,92084.0,0.054297]
[1732078521117,0.108588,92091.0,92084.0,0.054297]
[1732078521336,0.108588,92091.0,92072.0,0.085604]
[1732078521337,0.19465381,92085.0,92079.0,0.054301]
[1732078521558,0.09732576,92081.0,92079.0,0.108602]
[1732078521804,0.1117379,92080.0,92079.0,0.0543]
[1732078522250,0.1117379,92080.0,92072.0,0.0313]
[1732078522485,0.1117379,92080.0,92073.0,0.054304]
[1732078522486,0.20906366,92080.0,92073.0,0.054304]
[1732078522718,0.20906366,92080.0,92075.0,0.054303]
[1732078522930,0.20906366,92080.0,92076.0,0.054302]
[1732078523202,0.1117379,92080.0,92074.0,0.054304]
[1732078523424,0.1117379,92080.0,92076.0,0.054302]
[1732078523863,0.1117379,92080.0,92073.0,0.054304]
[1732078524080,0.1117379,92080.0,92074.0,0.0134674]
[1732078524296,0.1117379,92080.0,92074.0,0.0569104]
[1732078524522,0.1117379,92080.0,92075.0,0.0569094]
[1732078524751,0.1117379,92080.0,92074.0,0.043443]
[1732078524976,0.1117379,92080.0,92076.0,0.043442]
[1732078525627,0.10906255,92080.0,92077.0,0.043441]
[1732078526076,0.00210816,92079.0,92077.0,0.043441]
[1732078526297,0.00210816,92079.0,92073.0,0.04300505]
[1732078526298,0.10906255,92078.0,92073.0,0.04300505]
[1732078526554,0.0764,92077.0,92071.0,0.0004]
[1732078526770,0.108609,92074.0,92071.0,0.0004]
[1732078527026,0.23121,92072.0,92071.0,0.0004]
[1732078527251,0.34027255,92072.0,92071.0,0.0004]
[1732078527475,0.34272029,92072.0,92071.0,0.0004]
[1732078528178,0.42275281,92072.0,92071.0,0.0004]
[1732078530273,0.34272029,92072.0,92071.0,0.0004]
[1732078530497,0.42275281,92072.0,92071.0,0.0004]
[1732078532050,0.31414281,92072.0,92071.0,0.0004]
[1732078532262,0.31414281,92072.0,92060.0,0.043449]
[1732078532263,0.42275281,92072.0,92060.0,0.043449]
[1732078532479,0.108611,92071.0,92048.0,0.025163]
[1732078532689,0.31414281,92072.0,92063.0,0.043448]
[1732078532690,0.10906255,92070.0,92063.0,0.043448]
[1732078532919,0.11148363,92070.0,92067.0,0.043446]
[1732078533362,0.11148363,92070.0,92065.0,0.043447]
[1732078533584,0.11148363,92070.0,92064.0,0.043448]
[1732078534023,0.11148363,92070.0,92065.0,0.043447]
[1732078534719,0.11148363,92070.0,92050.0,0.01]
[1732078534952,0.11148363,92070.0,92069.0,0.043445]
[1732078536322,0.11148363,92070.0,92069.0,0.05690732]
[1732078536539,0.10906255,92070.0,92069.0,0.05690858]
[1732078536979,0.11148396,92070.0,92069.0,0.05690858]
[1732078537886,0.00242141,92070.0,92069.0,0.05690858]
[1732078538393,0.00171,92072.0,92071.0,0.043444]
[1732078538605,0.00171,92072.0,92071.0,0.05690758]
[1732078540232,0.11077255,92072.0,92071.0,0.05690758]
[1732078540446,0.19187255,92072.0,92071.0,0.05690758]
[1732078540890,0.19429409,92072.0,92071.0,0.05690758]
[1732078541120,0.11319409,92072.0,92071.0,0.043444]
[1732078541337,0.11319409,92072.0,92071.0,0.05690957]
[1732078547663,0.11319409,92072.0,92071.0,0.05691869]
[1732078550874,0.11319409,92072.0,92071.0,0.043444]
[1732078551092,0.11319409,92072.0,92071.0,0.0569247]
[1732078551304,0.11319409,92072.0,92071.0,0.043444]
[1732078551512,0.11319409,92072.0,92071.0,0.05692416]
[1732078555216,0.11319409,92072.0,92071.0,0.05575107]
[1732078557857,0.11319409,92072.0,92071.0,0.07732195]
[1732078558061,0.11319409,92072.0,92071.0,0.05575107]
[1732078558261,0.11319409,92072.0,92071.0,0.07732195]
[1732078559966,0.15819409,92072.0,92071.0,0.07732195]
[1732078560179,0.15819409,92072.0,92071.0,0.07703507]
[1732078560180,0.23929409,92072.0,92071.0,0.07703507]
[1732078560586,0.19429409,92072.0,92071.0,0.07703507]
[1732078560794,0.19429409,92072.0,92071.0,0.06997307]
[1732078563040,0.19429409,92072.0,92071.0,0.06997309]
[1732078565029,0.19429409,92072.0,92071.0,0.04839497]
[1732078569464,0.19429409,92072.0,92071.0,0.03490915]
[1732078569686,0.19429409,92072.0,92071.0,0.0484062]
[1732078570337,0.19429409,92072.0,92071.0,0.01349705]
[1732078570558,0.24369409,92072.0,92071.0,0.05694105]
[1732078571406,0.24369409,92072.0,92071.0,0.05725192]
[1732078571615,0.24369409,92072.0,92071.0,0.05810622]
[1732078572827,0.24369409,92072.0,92071.0,0.05811848]
[1732078573782,0.24369409,92072.0,92071.0,0.01467448]
[1732078573992,0.24369409,92072.0,92059.0,0.07241166]
[1732078574189,0.10906255,92071.0,92069.0,0.043445]
[1732078574411,0.10906255,92071.0,92070.0,0.043445]
[1732078577301,0.10906255,92071.0,92069.0,0.04353985]
[1732078577715,0.10906255,92071.0,92067.0,0.043446]
[1732078577955,0.10906255,92071.0,92069.0,0.043445]
[1732078578378,0.10906255,92071.0,92068.0,0.043446]
[1732078578582,0.10906255,92071.0,92069.0,0.043445]
[1732078579002,0.00244074,92070.0,92069.0,0.043445]
[1732078579230,0.11150329,92070.0,92069.0,0.043445]
[1732078582616,0.00244074,92070.0,92069.0,0.043445]
[1732078583064,0.00171,92072.0,92071.0,0.043444]
[1732078583294,0.00171,92072.0,92071.0,0.06506533]
[1732078584887,0.00415375,92072.0,92071.0,0.06506533]
[1732078585088,0.00171,92072.0,92071.0,0.06506533]
[1732078585294,0.00415375,92072.0,92071.0,0.06506533]
[1732078585499,0.00171,92072.0,92071.0,0.06506533]
[1732078585735,0.11866199,92079.0,92071.0,0.02161896]
[1732078585953,0.02111,92079.0,92078.0,0.043441]
[1732078586170,0.02111,92079.0,92078.0,0.07857044]
[1732078586625,0.13242695,92079.0,92078.0,0.03512944]
[1732078586847,0.02111,92079.0,92078.0,0.07857044]
[1732078587105,0.17335199,92080.0,92079.0,0.04344]
[1732078587106,0.0758,92080.0,92079.0,0.04344]
[1732078587323,0.0758,92080.0,92079.0,0.07856944]
[1732078587567,0.19510398,92095.0,92079.0,0.07856944]
[1732078587568,0.0752,92091.0,92090.0,0.043435]
[1732078587779,0.0752,92091.0,92090.0,0.07856444]
[1732078587780,0.18426255,92091.0,92090.0,0.07856444]
[1732078588517,0.18426255,92091.0,92081.0,0.04344]
[1732078588743,0.0752,92091.0,92090.0,0.043435]
[1732078589427,0.0752,92091.0,92086.0,0.043437]
[1732078589428,0.1219,92096.0,92095.0,0.043433]
[1732078589650,0.0752,92096.0,92095.0,0.043433]
[1732078590983,0.18426255,92096.0,92095.0,0.043433]
[1732078592659,0.1319,92094.0,92088.0,0.043436]
[1732078592886,0.0752,92092.0,92087.0,0.043437]
[1732078593109,0.10906255,92091.0,92088.0,0.043436]
[1732078593319,0.10906255,92091.0,92089.0,0.043436]
[1732078593910,0.00216067,92090.0,92087.0,0.043437]
[1732078594084,0.10906255,92089.0,92087.0,0.043437]
[1732078594293,0.10906255,92089.0,92088.0,0.043436]
[1732078594490,0.00215998,92088.0,92081.0,0.1]
[1732078594709,0.0752,92086.0,92085.0,0.043438]
[1732078595029,0.18426255,92086.0,92085.0,0.043438]
[1732078595239,0.11122183,92086.0,92085.0,0.043438]
[1732078595430,0.00215928,92086.0,92085.0,0.043438]
[1732078595895,0.0752,92096.0,92095.0,0.043433]
[1732078596092,0.18426255,92096.0,92095.0,0.043433]
[1732078596297,0.18642121,92096.0,92095.0,0.043433]
[1732078600648,0.18642121,92096.0,92095.0,0.05679671]
[1732078601024,0.18642121,92096.0,92095.0,9.05679671]
[1732078601439,0.18426255,92096.0,92095.0,9.05679671]
[1732078602096,0.18426255,92096.0,92095.0,9.10005562]
[1732078602317,0.18426255,92096.0,92095.0,9.043433]
[1732078602531,0.18426255,92096.0,92095.0,9.0]
[1732078602752,0.23266255,92096.0,92095.0,9.0]
[1732078603454,0.23266255,92096.0,92095.0,9.043433]
[1732078608915,0.23437095,92096.0,92095.0,9.043433]
[1732078614231,0.18597095,92096.0,92095.0,9.043433]
[1732078614923,0.0017084,92096.0,92095.0,9.043433]
[1732078615556,0.0017084,92096.0,92095.0,9.190633]
[1732078617747,0.0017084,92096.0,92095.0,9.192633]
[1732078617900,0.0017084,92096.0,92095.0,9.190633]
[1732078618103,0.0017084,92096.0,92095.0,9.22277789]
[1732078618532,0.0017084,92096.0,92095.0,9.22077789]
[1732078620891,0.0017084,92096.0,92095.0,9.22277789]
[1732078621633,0.0777,92119.0,92106.0,0.002]
[1732078621831,0.0777,92119.0,92106.0,0.045428]
[1732078621981,0.00359912,92107.0,92106.0,0.091928]
[1732078622185,0.001709,92107.0,92106.0,0.091928]
[1732078624399,0.0017086,92128.0,92127.0,0.043418]
[1732078624812,0.00387603,92128.0,92127.0,0.043418]
[1732078632458,0.08577603,92128.0,92127.0,0.043418]
[1732078633314,0.08577603,92128.0,92127.0,0.08656121]
[1732078637163,0.00387603,92128.0,92127.0,0.08656121]
[1732078639728,0.00387603,92128.0,92127.0,0.08676867]
[1732078642713,0.00387603,92128.0,92127.0,0.08876866]
[1732078643329,0.00387603,92128.0,92127.0,0.23516866]
[1732078643915,0.0017086,92128.0,92127.0,0.23316866]
[1732078644345,0.00398451,92128.0,92127.0,0.23316866]
[1732078644552,0.00398451,92128.0,92127.0,0.23516866]
[1732078644752,0.00398451,92128.0,92127.0,0.23316866]
[1732078644957,0.00398451,92128.0,92127.0,0.23516866]
[1732078645161,0.00398451,92128.0,92127.0,0.23316866]
[1732078645339,0.00398451,92128.0,92127.0,0.23516866]
[1732078646101,0.00398451,92128.0,92127.0,0.23316866]
[1732078646308,0.00398451,92128.0,92127.0,0.23516866]
[1732078647857,0.00398451,92128.0,92127.0,0.23316866]
[1732078649542,0.00398451,92128.0,92127.0,0.23516866]
[1732078649971,0.0017086,92128.0,92127.0,0.23516866]
[1732078650371,0.0017086,92128.0,92127.0,0.23316866]
[1732078651134,6e-07,92128.0,92127.0,0.23516866]
[1732078651331,0.7453662,92130.0,92129.0,0.002]
[1732078651332,0.658535,92130.0,92129.0,0.002]
[1732078651592,0.615119,92130.0,92129.0,0.04562445]
[1732078652842,0.615119,92130.0,92129.0,0.04362445]
[1732078653039,0.615119,92130.0,92129.0,0.04562445]
[1732078653637,0.615119,92130.0,92129.0,0.04362445]
[1732078654329,0.615119,92130.0,92129.0,0.04562445]
[1732078654461,0.571703,92130.0,92129.0,0.254687]
[1732078656587,0.463163,92130.0,92129.0,0.254687]
[1732078657253,0.463163,92130.0,92129.0,0.30430456]
[1732078657472,0.354623,92130.0,92129.0,0.30430456]
[1732078658112,0.321323,92130.0,92129.0,0.30430456]
[1732078658498,0.256199,92130.0,92129.0,0.30430456]
[1732078658652,0.234491,92130.0,92129.0,0.30430456]
[1732078658859,0.179223,92130.0,92129.0,0.35050456]
[1732078659280,0.140663,92130.0,92129.0,0.35050456]